bitfinex/quotes_ETHUSD_20251128
["timestamp","ask_amount","ask_price","bid_price","bid_amount"]
[1764313032793,0.4916,3013.5,3013.3,0.001]
[1764313032991,1.1795534,3013.4,3013.3,0.001]
[1764313033183,0.87224048,3013.4,3013.3,0.001]
[1764313033383,1.33394048,3013.4,3013.3,0.001]
[1764313034711,4.65245113,3013.4,3013.3,0.001]
[1764313035421,5.29011055,3013.4,3013.3,0.001]
[1764313035596,4.95942993,3013.4,3013.3,0.001]
[1764313037114,4.65245113,3013.4,3013.3,0.001]
[1764313037310,4.95935428,3013.4,3013.3,0.001]
[1764313038121,4.65245113,3013.4,3013.3,0.001]
[1764313038286,4.95931855,3013.4,3013.3,0.001]
[1764313038824,4.65245113,3013.4,3013.3,0.001]
[1764313040311,4.95934077,3013.4,3013.3,0.001]
[1764313041214,4.65245113,3013.4,3013.3,0.001]
[1764313041412,4.95937457,3013.4,3013.3,0.001]
[1764313042511,4.65245113,3013.4,3013.3,0.001]
[1764313043317,4.95927654,3013.4,3013.3,0.001]
[1764313056227,5.16827654,3013.4,3013.3,0.001]
[1764313057734,10.36285679,3013.4,3013.3,0.001]
[1764313057905,9.93217617,3013.4,3013.3,0.001]
[1764313058100,5.16827654,3013.4,3013.3,0.001]
[1764313058503,5.17027654,3013.4,3013.3,0.001]
[1764313058934,5.19287654,3013.4,3013.3,0.001]
[1764313061554,5.90331828,3013.4,3013.3,0.001]
[1764313065435,5.41901828,3013.4,3013.3,0.001]
[1764313065640,5.41901828,3013.4,3012.9,0.2904]
[1764313065837,1.01726715,3013.3,3012.9,0.2904]
[1764313066038,0.30682541,3013.2,3012.9,0.2904]
[1764313066233,0.30682541,3013.1,3012.9,0.2904]
[1764313066442,0.30682541,3013.0,3012.9,0.2904]
[1764313070246,0.30682541,3013.0,3012.9,0.5808]
[1764313073056,0.30682541,3013.0,3012.9,0.2904]
[1764313073626,3.31863533,3013.3,3012.9,0.2904]
[1764313073831,0.30882968,3013.2,3012.9,0.2904]
[1764313074026,3.31863533,3013.3,3012.9,0.2904]
[1764313074027,0.30882968,3013.1,3012.9,0.2904]
[1764313074234,3.31863533,3013.3,3012.9,0.2904]
[1764313074549,0.3088179,3013.2,3012.9,0.2904]
[1764313074752,0.3088179,3013.1,3012.9,0.2904]
[1764313075057,3.31863533,3013.3,3012.9,0.2904]
[1764313075359,0.30880785,3013.2,3012.9,0.2904]
[1764313075670,0.30880785,3013.1,3012.9,0.2914]
[1764313075874,0.002,3013.1,3012.9,0.2914]
[1764313076170,0.002,3013.1,3013.0,0.2904]
[1764313076344,0.31080352,3013.1,3013.0,0.2904]
[1764313077566,1.27860352,3013.1,3012.9,0.001]
[1764313077740,0.4859,3013.0,3012.9,0.001]
[1764313077936,0.9678,3013.0,3012.9,0.001]
[1764313078846,0.4859,3013.0,3012.9,0.001]
[1764313080665,0.9678,3013.0,3012.9,0.001]
[1764313081267,0.4859,3013.0,3012.9,0.001]
[1764313081869,1.27659809,3013.0,3012.9,0.001]
[1764313082372,0.79469809,3013.0,3012.9,0.001]
[1764313082560,1.27659809,3013.0,3012.9,0.001]
[1764313083870,0.30879809,3013.0,3012.9,0.001]
[1764313084968,0.30879809,3013.0,3012.9,0.2914]
[1764313085476,0.308827,3013.0,3012.9,0.2914]
[1764313087375,0.308827,3013.0,3012.9,0.001]
[1764313088869,0.794727,3013.0,3012.9,0.001]
[1764313089080,1.276627,3013.0,3012.9,0.001]
[1764313090143,4.59557821,3013.0,3012.9,0.001]
[1764313090348,5.38721196,3013.0,3012.9,0.001]
[1764313091553,2.06826075,3013.0,3012.9,0.001]
[1764313092052,5.38721196,3013.0,3012.9,0.001]
[1764313093049,5.38921196,3013.0,3012.9,0.001]
[1764313093980,2.07026075,3013.0,3012.9,0.001]
[1764313095783,1.58836075,3013.0,3012.9,0.001]
[1764313096084,1.10246075,3013.0,3012.9,0.2914]
[1764313096380,0.310827,3013.0,3012.9,0.2914]
[1764313098291,1.274727,3013.0,3012.9,0.001]
[1764313099293,0.788127,3013.0,3012.9,0.001]
[1764313101383,1.274727,3013.0,3012.9,0.001]
[1764313101707,0.310827,3013.0,3012.9,0.2914]
[1764313101869,0.002,3013.0,3012.9,0.5818]
[1764313102209,0.002,3013.0,3012.9,0.2914]
[1764313103607,0.31077897,3013.0,3012.9,0.2914]
[1764313104803,0.31077897,3013.0,3012.9,1.01699411]
[1764313107377,0.78807897,3013.0,3012.9,0.001]
[1764313107699,1.27458738,3013.0,3012.9,0.001]
[1764313107998,1.73412595,3013.0,3012.9,0.001]
[1764313108207,1.24752595,3013.0,3012.9,0.001]
[1764313109712,0.77022595,3013.0,3012.9,0.2914]
[1764313110009,0.77022595,3013.0,3012.9,0.001]
[1764313111015,0.31068738,3013.0,3012.9,0.001]
[1764313112498,0.31068738,3013.0,3012.9,0.2914]
[1764313112999,0.31068738,3013.0,3012.9,0.5818]
[1764313114591,0.002,3013.0,3012.9,3.90086136]
[1764313119299,0.002,3013.0,3012.9,5.07895812]
[1764313119498,0.002,3013.0,3012.9,5.36935812]
[1764313121120,0.002,3013.0,3012.9,4.82174873]
[1764313123427,0.002,3013.0,3012.9,5.11214873]
[1764313137322,0.002,3013.0,3012.9,4.36924608]
[1764313139128,0.002,3013.0,3012.9,4.07884608]
[1764313140617,0.002,3013.0,3012.9,0.001]
[1764313140618,1.29308726,3013.0,3012.9,0.001]
[1764313147440,4.61203847,3013.0,3012.9,0.001]
[1764313148228,1.29308726,3013.0,3012.9,0.001]
[1764313148429,2.08636053,3013.0,3012.9,0.001]
[1764313149333,5.40531174,3013.0,3012.9,0.001]
[1764313150822,2.08636053,3013.0,3012.9,0.001]
[1764313151346,5.40531174,3013.0,3012.9,0.001]
[1764313152638,4.91931174,3013.0,3012.9,0.001]
[1764313153236,5.40311174,3013.0,3012.9,0.001]
[1764313170287,5.53606328,3013.0,3012.9,0.001]
[1764313178569,10.30184891,3013.0,3012.9,0.001]
[1764313181896,10.73252953,3013.0,3012.9,0.001]
[1764313183405,10.30184891,3013.0,3012.9,0.001]
[1764313183602,11.44566557,3013.0,3012.9,0.001]
[1764313187908,11.44619881,3013.0,3012.9,0.001]
[1764313191311,11.42102219,3013.0,3012.9,0.001]
[1764313191499,6.65523656,3013.0,3012.9,0.001]
[1764313196024,6.24973256,3013.0,3012.9,0.001]
[1764313196523,5.05279652,3013.0,3012.9,0.001]
[1764313197025,5.51799652,3013.0,3012.9,0.001]
[1764313197528,10.71446277,3013.0,3012.9,0.001]
[1764313197730,5.51799652,3013.0,3012.9,0.001]
[1764313197937,5.05279652,3013.0,3012.9,0.001]
[1764313198089,5.05271516,3013.0,3012.9,0.001]
[1764313198295,5.51791516,3013.0,3012.9,0.001]
[1764313199197,5.84859578,3013.0,3012.9,0.001]
[1764313203097,6.56155994,3013.0,3012.9,0.001]
[1764313203499,6.23087932,3013.0,3012.9,0.001]
[1764313203712,6.66155994,3013.0,3012.9,0.001]
[1764313214755,5.76567932,3013.0,3012.9,0.001]
[1764313215055,5.75667932,3013.0,3012.9,0.001]
[1764313215252,6.08735994,3013.0,3012.9,0.001]
[1764313218631,5.26947932,3013.0,3012.9,0.2914]
[1764313219159,4.55651516,3013.0,3012.9,0.2914]
[1764313219750,4.88719578,3013.0,3012.9,0.001]
[1764313220462,3.76324189,3013.0,3012.9,0.2914]
[1764313221762,0.44429068,3013.0,3012.9,0.2914]
[1764313222055,3.76324189,3013.0,3012.9,0.2914]
[1764313222843,3.76324189,3013.0,3012.9,0.5818]
[1764313222844,0.31133914,3013.0,3012.9,0.5818]
[1764313224257,3.63029035,3013.0,3012.9,0.5818]
[1764313225641,0.31133914,3013.0,3012.9,0.5818]
[1764313226431,3.63029035,3013.0,3012.9,0.5818]
[1764313226870,0.31133914,3013.0,3012.9,0.5818]
[1764313227936,3.63029035,3013.0,3012.9,0.5818]
[1764313228140,5.92973681,3013.0,3012.9,0.001]
[1764313228338,7.35770978,3013.0,3012.9,0.001]
[1764313229763,9.68470462,3013.0,3012.9,0.001]
[1764313230140,8.7957272,3013.0,3012.9,0.001]
[1764313234085,14.45049025,3013.0,3012.9,0.001]
[1764313234267,0.83618462,3012.7,3012.6,0.001]
[1764313234463,8.72604949,3012.7,3012.6,0.001]
[1764313234779,10.60664746,3012.7,3012.6,0.001]
[1764313234949,10.73966664,3012.7,3012.6,0.001]
[1764313235876,14.05894834,3012.7,3012.6,0.001]
[1764313237194,13.16942566,3012.7,3012.6,0.001]
[1764313240689,13.17229107,3012.7,3012.6,0.001]
[1764313242586,12.94161045,3012.7,3012.6,0.001]
[1764313242761,14.16181375,3012.7,3012.6,0.001]
[1764313244386,16.66893143,3012.7,3012.6,0.001]
[1764313244590,16.76893143,3012.7,3012.6,0.001]
[1764313246464,23.14893143,3012.7,3012.6,0.001]
[1764313247298,24.03550795,3012.7,3012.6,0.001]
[1764313250596,14.78985291,3012.7,3012.6,0.001]
[1764313250771,13.90327639,3012.7,3012.6,0.001]
[1764313250971,14.30878039,3012.7,3012.6,0.001]
[1764313251170,14.76178039,3012.7,3012.6,0.001]
[1764313252192,14.75868947,3012.7,3012.6,0.001]
[1764313253675,14.30568947,3012.7,3012.6,0.001]
[1764313255903,13.58009536,3012.7,3012.6,0.001]
[1764313256098,14.30568947,3012.7,3012.6,0.001]
[1764313256283,7.92568947,3012.7,3012.6,0.001]
[1764313261521,10.84961277,3012.7,3012.6,0.5818]
[1764313261730,10.14028038,3012.7,3012.6,0.5818]
[1764313262312,10.85189289,3012.7,3012.6,0.5818]
[1764313262489,10.14028038,3012.7,3012.6,0.5818]
[1764313262684,3.6272612,3012.7,3012.6,0.5818]
[1764313263209,0.3079795,3012.7,3012.6,0.5818]
[1764313264328,0.002,3012.9,3012.6,0.5818]
[1764313264611,0.002,3012.9,3012.8,0.2904]
[1764313264814,0.31052209,3012.9,3012.8,0.2904]
[1764313264993,0.31052209,3012.9,3012.8,0.5808]
[1764313265706,3.62958345,3012.9,3012.8,0.5808]
[1764313266219,3.32106136,3012.9,3012.8,0.5808]
[1764313266519,0.405504,3012.8,3012.6,0.001]
[1764313266722,5.507527,3012.7,3012.6,0.001]
[1764313267088,5.507527,3012.7,3012.6,0.2914]
[1764313268001,4.05815766,3012.7,3012.6,0.2914]
[1764313270706,4.55137986,3012.7,3012.6,0.2914]
[1764313270919,4.98206048,3012.7,3012.6,0.2914]
[1764313271723,4.05815766,3012.7,3012.6,0.2914]
[1764313272023,0.2914,3012.7,3012.6,0.5818]
[1764313272205,0.002,3012.9,3012.6,0.5818]
[1764313272405,0.002,3012.9,3012.8,0.2904]
[1764313272605,0.30997578,3012.9,3012.8,0.2904]
[1764313272804,0.002,3012.9,3012.8,0.5808]
[1764313277622,0.002,3012.9,3012.8,0.5818]
[1764313279737,0.002,3012.9,3012.8,0.2914]
[1764313279939,0.30990334,3012.9,3012.8,0.2914]
[1764313280240,3.6289647,3012.9,3012.8,0.5818]
[1764313283734,0.30990334,3012.9,3012.8,0.5818]
[1764313284440,0.002,3012.9,3012.8,0.5818]
[1764313284614,0.002,3012.9,3012.8,4.62310352]
[1764313285609,0.002,3012.9,3012.8,4.17361352]
[1764313287442,0.002,3013.3,3012.9,0.72559411]
[1764313287747,0.002,3013.3,3012.8,11.53815997]
[1764313287748,0.002,3013.3,3013.2,3.31873091]
[1764313287914,0.002,3013.3,3013.2,4.75091225]
[1764313288315,0.002,3013.3,3013.2,5.47650636]
[1764313288759,0.002,3013.6,3013.2,12.11396818]
[1764313288941,0.002,3014.1,3013.5,0.72559411]
[1764313289253,0.002,3014.1,3013.6,0.209]
[1764313289843,0.002,3014.1,3013.6,3.52729041]
[1764313290030,0.002,3014.1,3013.6,4.21186492]
[1764313291348,0.002,3014.1,3013.6,4.93745903]
[1764313291548,0.002,3014.1,3013.6,5.03745903]
[1764313291940,0.002,3014.1,3013.6,4.93745903]
[1764313292339,0.002,3014.1,3013.8,0.1]
[1764313292540,0.002,3014.1,3013.9,0.55942452]
[1764313292738,0.002,3014.1,3014.0,0.209]
[1764313294551,0.002,3014.1,3014.0,4.25244414]
[1764313295225,0.002,3014.1,3014.0,4.38531044]
[1764313295832,0.002,3014.1,3014.0,4.17631044]
[1764313296037,0.002,3014.1,3014.0,1.40816761]
[1764313296757,0.002,3014.1,3014.0,1.19916761]
[1764313296952,0.002,3014.1,3014.0,1.40816761]
[1764313297135,0.002,3014.1,3014.0,1.19916761]
[1764313297834,0.002,3014.1,3014.0,0.72559411]
[1764313298034,0.002,3014.1,3014.0,8.81209518]
[1764313298236,0.002,3014.4,3014.1,0.72559411]
[1764313298832,0.002,3014.4,3014.3,0.72559411]
[1764313299226,0.002,3014.4,3014.3,0.93459411]
[1764313299431,0.002,3014.4,3014.3,1.33817355]
[1764313299645,0.002,3014.4,3014.3,0.40357944]
[1764313299846,0.002,3014.4,3014.1,4.2523088]
[1764313300247,0.4823,3014.2,3012.9,4.76865104]
[1764313300573,0.4823,3014.2,3012.8,3.32015445]
[1764313300574,0.4823,3014.2,3013.3,0.13288793]
[1764313300737,0.4823,3014.2,3013.1,4.76125391]
[1764313300738,3.80072624,3014.1,3013.4,3.52746966]
[1764313301067,3.80072624,3014.1,3013.3,3.31858443]
[1764313301370,0.4829,3014.0,3013.4,0.209]
[1764313301739,0.1952,3013.9,3013.4,0.209]
[1764313302256,0.002,3014.4,3013.5,4.79443791]
[1764313302456,0.002,3014.4,3013.5,4.76125391]
[1764313302654,3.31941753,3014.4,3013.5,4.76125391]
[1764313302994,3.80231753,3014.4,3013.7,3.3181803]
[1764313303164,3.80231753,3014.4,3013.8,0.209]
[1764313303465,3.80231753,3014.4,3013.6,0.50702539]
[1764313303466,6.63683506,3014.4,3013.6,3.82526183]
[1764313303633,3.31941753,3014.4,3013.7,0.209]
[1764313304054,3.1538852,3014.4,3013.7,0.209]
[1764313304736,3.6367852,3014.4,3013.7,0.209]
[1764313306167,6.95420273,3014.4,3013.7,3.52717968]
[1764313307259,0.4829,3014.4,3013.7,7.5806179]
[1764313307568,3.80031269,3014.4,3013.7,4.2624376]
[1764313307952,0.4829,3014.3,3013.8,0.209]
[1764313309136,3.31762988,3014.2,3013.7,0.73525792]
[1764313309447,3.31762988,3014.2,3013.6,4.04385652]
[1764313309448,0.4728,3013.8,3013.6,0.209]
[1764313313245,0.4728,3013.8,3013.5,4.04494389]
[1764313313542,0.4728,3013.8,3013.6,0.209]
[1764313315373,0.4728,3013.8,3013.5,0.001]
[1764313315564,0.9557,3013.7,3013.6,0.209]
[1764313316562,0.9557,3013.7,3013.5,0.001]
[1764313316761,0.9557,3013.6,3013.5,0.21]
[1764313317157,0.9557,3013.6,3013.5,0.001]
[1764313317461,5.15429175,3013.6,3013.5,0.001]
[1764313317872,4.58259636,3013.6,3013.5,0.001]
[1764313318888,3.51318849,3013.9,3013.5,0.001]
[1764313319048,0.30860432,3013.8,3013.5,0.001]
[1764313319388,0.30860432,3013.7,3013.5,0.001]
[1764313319544,3.51318849,3013.9,3013.5,0.001]
[1764313319742,0.3085603,3013.8,3013.5,0.001]
[1764313319976,3.31789234,3014.0,3013.5,0.001]
[1764313320176,0.30856812,3013.9,3013.5,0.001]
[1764313320379,0.30855557,3013.8,3013.5,0.001]
[1764313320693,3.80079234,3014.0,3013.5,0.001]
[1764313320851,0.30855562,3013.9,3013.5,0.001]
[1764313321050,0.30855562,3013.8,3013.5,0.001]
[1764313321388,3.80079234,3014.0,3013.5,0.001]
[1764313321550,0.30851944,3013.9,3013.5,0.001]
[1764313321755,0.30851944,3013.8,3013.5,0.001]
[1764313321958,3.80079234,3014.0,3013.5,0.001]
[1764313322161,0.30854245,3013.9,3013.5,0.001]
[1764313322378,0.30854245,3013.8,3013.5,0.001]
[1764313322579,3.80079234,3014.0,3013.5,0.001]
[1764313322860,0.30850986,3013.9,3013.5,0.001]
[1764313323055,0.30850986,3013.8,3013.5,0.001]
[1764313323258,3.80079234,3014.0,3013.5,0.001]
[1764313323490,0.30851766,3013.9,3013.5,0.001]
[1764313323706,3.80079234,3014.0,3013.5,0.001]
[1764313323707,0.30851766,3013.8,3013.5,0.001]
[1764313323864,3.80079234,3014.0,3013.5,0.001]
[1764313324185,0.30852948,3013.9,3013.5,0.001]
[1764313324390,0.30852948,3013.8,3013.5,0.001]
[1764313324560,3.80079234,3014.0,3013.5,0.001]
[1764313324759,0.30859466,3013.9,3013.5,0.001]
[1764313324979,0.30859466,3013.8,3013.5,0.001]
[1764313325183,0.4829,3014.0,3013.5,0.001]
[1764313325389,0.30862635,3013.9,3013.5,0.68570957]
[1764313325561,0.4829,3014.0,3013.5,0.68570957]
[1764313325761,0.30862639,3013.9,3013.5,0.68570957]
[1764313326086,3.80075784,3014.0,3013.5,0.68570957]
[1764313326286,0.30862636,3013.9,3013.5,0.001]
[1764313326487,3.80075784,3014.0,3013.5,0.001]
[1764313326661,0.30870343,3013.9,3013.5,0.001]
[1764313326861,0.30870343,3013.8,3013.5,0.001]
[1764313327061,3.80075784,3014.0,3013.5,0.001]
[1764313327262,0.3087191,3013.9,3013.5,0.001]
[1764313327570,0.3087191,3013.8,3013.5,3.31937373]
[1764313327872,3.80075784,3014.0,3013.5,3.31937373]
[1764313328061,0.30875485,3013.9,3013.5,3.31937373]
[1764313328261,0.30875485,3013.8,3013.5,3.31937373]
[1764313328481,3.80075784,3014.0,3013.5,3.31937373]
[1764313328679,0.30887182,3013.9,3013.5,3.31937373]
[1764313328876,0.30887182,3013.8,3013.5,3.31937373]
[1764313329077,3.31785784,3014.0,3013.5,3.31937373]
[1764313329393,0.30887263,3013.9,3013.5,3.31937373]
[1764313329592,0.30887263,3013.8,3013.5,3.67552961]
[1764313329787,0.002,3014.1,3013.5,6.99393014]
[1764313329972,0.30904403,3014.0,3013.5,6.99393014]
[1764313330172,0.30904403,3013.9,3013.5,6.99393014]
[1764313330384,0.30904403,3013.8,3013.6,0.72029301]
[1764313330682,3.31975212,3014.1,3013.6,0.72029301]
[1764313330989,0.30916794,3014.0,3013.5,7.02711414]
[1764313331173,0.48,3014.1,3013.5,6.99393014]
[1764313331174,0.30916794,3013.9,3013.5,6.99393014]
[1764313331375,0.30916794,3013.8,3013.5,6.99393014]
[1764313331577,0.002,3014.1,3013.5,6.99393014]
[1764313331775,0.30916561,3014.0,3013.5,6.99393014]
[1764313331965,0.30916561,3013.9,3013.6,0.72029301]
[1764313332166,0.30916561,3013.8,3013.7,3.3181803]
[1764313333195,0.30916561,3013.8,3013.6,4.03853874]
[1764313333366,0.30916561,3013.7,3013.6,4.03853874]
[1764313333794,3.77344854,3014.1,3013.6,4.03853874]
[1764313333994,0.30917781,3014.0,3013.6,4.03853874]
[1764313334192,0.4557,3014.1,3013.6,4.03853874]
[1764313334193,0.30917781,3013.9,3013.7,0.43956946]
[1764313334398,0.30917781,3013.8,3013.7,0.43956946]
[1764313335099,0.79357781,3013.8,3013.7,0.64856946]
[1764313335393,1.24727781,3013.8,3013.7,0.209]
[1764313336482,0.79357781,3013.8,3013.7,0.209]
[1764313337764,0.30917781,3013.8,3013.7,0.209]
[1764313339969,0.30917781,3013.8,3013.6,3.52724573]
[1764313340169,0.30917781,3013.7,3013.6,3.52724573]
[1764313340387,0.30917781,3013.7,3013.6,4.21192122]
[1764313343375,0.002,3014.1,3013.6,7.53021163]
[1764313343568,0.002,3014.1,3013.9,4.76125391]
[1764313343773,0.002,3014.1,3014.0,1.03459411]
[1764313344489,0.002,3014.1,3014.0,4.35244414]
[1764313344802,0.002,3014.1,3014.0,5.59892757]
[1764313346378,0.002,3014.1,3014.0,5.63210607]
[1764313346585,0.002,3014.1,3014.0,5.59892757]
[1764313347299,0.002,3014.1,3014.0,10.79886398]
[1764313347502,0.002,3014.1,3014.0,10.76568548]
[1764313348785,0.002,3014.1,3014.0,5.79543157]
[1764313349105,0.002,3014.1,3014.0,6.03761007]
[1764313349399,0.002,3014.1,3014.0,10.79886398]
[1764313349706,0.002,3014.1,3014.0,10.76568548]
[1764313349901,0.002,3014.1,3014.0,5.79543157]
[1764313350101,0.002,3014.1,3014.0,6.00443157]
[1764313350676,0.002,3014.1,3014.0,5.38992757]
[1764313350884,0.002,3014.1,3014.0,5.59892757]
[1764313352805,0.002,3014.1,3014.0,5.38992757]
[1764313353015,0.002,3014.1,3014.0,5.49892757]
[1764313353212,0.002,3014.1,3014.0,5.59892757]
[1764313353407,0.002,3014.1,3014.0,4.56433346]
[1764313353608,0.002,3014.1,3014.0,4.59751196]
[1764313353810,0.002,3014.1,3014.0,5.49892757]
[1764313354002,0.002,3014.1,3014.0,5.53210607]
[1764313355915,0.4864,3014.1,3014.0,1.97207754]
[1764313356224,0.9401,3014.1,3013.5,0.001]
[1764313356392,0.4844,3014.0,3013.7,0.72559411]
[1764313356583,0.9381,3014.0,3013.7,0.72559411]
[1764313356789,0.4844,3013.8,3013.7,0.72559411]
[1764313357100,0.4844,3013.8,3013.7,0.75722112]
[1764313357283,0.4844,3013.8,3013.7,0.209]
[1764313357284,0.9381,3013.8,3013.7,0.209]
[1764313357489,0.9381,3013.8,3013.5,0.001]
[1764313357818,0.4844,3013.6,3013.5,0.001]
[1764313357988,0.4844,3013.6,3013.5,0.21]
[1764313358189,0.9381,3013.6,3013.5,0.21]
[1764313358383,0.9381,3013.6,3013.5,3.52840053]
[1764313359213,0.4537,3013.8,3013.5,3.52840053]
[1764313359418,0.1827,3013.9,3013.5,4.21309138]
[1764313359606,0.6364,3013.9,3013.6,0.0331829]
[1764313360208,0.6364,3013.9,3013.6,3.3182553]
[1764313360418,0.4844,3013.7,3013.6,3.3182553]
[1764313360818,0.9648,3013.7,3013.6,3.3182553]
[1764313361503,0.6631,3013.9,3013.6,3.3182553]
[1764313361706,0.4881,3013.7,3013.6,3.3182553]
[1764313363515,0.9685,3013.7,3013.6,3.3182553]
[1764313364527,0.9685,3013.7,3013.5,3.52834508]
[1764313364829,0.9685,3013.6,3013.5,3.52834508]
[1764313365018,0.1827,3013.9,3013.5,3.52834508]
[1764313365396,0.6631,3013.9,3013.5,3.52834508]
[1764313365797,0.1827,3013.9,3013.5,3.52834508]
[1764313366024,0.6631,3013.9,3013.5,3.52834508]
[1764313366722,0.6631,3013.9,3013.7,3.3181803]
[1764313367027,0.6631,3013.9,3013.6,3.31825076]
[1764313369224,0.4804,3013.8,3013.6,3.31825076]
[1764313369426,0.4881,3013.7,3013.5,3.52836483]
[1764313369605,0.002,3014.1,3013.6,5.89231343]
[1764313369809,0.002,3014.1,3013.9,0.1]
[1764313370799,0.002,3014.1,3014.0,0.209]
[1764313372530,0.9705,3014.1,3014.0,4.25244414]
[1764313376327,0.9705,3014.1,3014.0,5.00948409]
[1764313377227,0.9705,3014.1,3014.0,4.80048409]
[1764313377428,0.4901,3014.1,3014.0,4.04344414]
[1764313377630,0.4901,3014.1,3014.0,4.25244414]
[1764313377805,0.002,3014.1,3014.0,4.25244414]
[1764313378004,0.002,3014.1,3014.0,4.28562264]
[1764313378933,0.4901,3014.1,3014.0,4.28562264]
[1764313379117,0.4901,3014.1,3014.0,4.25244414]
[1764313379711,0.9705,3014.1,3014.0,0.93459411]
[1764313380320,0.9705,3014.1,3014.0,0.72559411]
[1764313380529,0.002,3014.1,3014.0,4.28562264]
[1764313381031,0.9705,3014.1,3014.0,4.25244414]
[1764313382930,0.002,3014.1,3014.0,5.04276234]
[1764313383231,0.002,3014.1,3014.0,5.14276234]
[1764313388041,0.002,3014.1,3014.0,5.10958384]
[1764313398271,0.002,3014.1,3014.0,5.11058384]
[1764313399942,0.002,3014.1,3014.0,5.14376234]
[1764313406679,0.002,3014.1,3014.0,5.11058384]
[1764313413180,0.002,3014.1,3014.0,5.14376234]
[1764313413349,0.002,3014.1,3014.0,5.11058384]
[1764313414472,0.002,3014.1,3014.0,4.90158384]
[1764313414677,0.002,3014.1,3014.0,5.11058384]
[1764313421885,0.002,3014.1,3014.0,5.54926634]
[1764313422673,0.002,3014.1,3014.0,15.06090634]
[1764313422867,0.002,3014.1,3014.0,15.02772784]
[1764313425767,0.002,3014.1,3014.0,17.41885494]
[1764313425959,0.002,3014.1,3014.0,15.02772784]
[1764313426294,0.002,3014.1,3014.0,15.16055664]
[1764313441794,0.002,3014.1,3014.0,14.95155664]
[1764313441995,0.002,3014.1,3014.0,10.40473664]
[1764313441996,0.479,3014.1,3014.0,10.40473664]
[1764313442316,0.002,3014.1,3014.0,17.54585076]
[1764313443594,0.002,3014.1,3014.0,15.16055664]
[1764313445915,0.002,3014.1,3014.0,15.58066612]
[1764313446106,0.002,3014.1,3014.0,15.16055664]
[1764313449038,0.1951,3015.6,3014.1,0.405504]
[1764313449331,0.6609,3016.0,3015.9,0.505504]
[1764313449529,0.6609,3016.0,3015.9,0.82559411]
[1764313449530,0.1826,3016.0,3015.9,0.82559411]
[1764313449695,0.1826,3016.0,3015.9,0.209]
[1764313449696,0.6596,3016.0,3015.9,0.209]
[1764313449891,1.1379,3016.0,3015.9,0.209]
[1764313450214,1.1379,3016.0,3015.9,1.204925]
[1764313450597,1.1379,3016.0,3015.9,0.995925]
[1764313450910,1.1399,3016.0,3015.7,0.21]
[1764313451099,0.4733,3015.9,3015.7,0.21]
[1764313451299,0.4874,3015.8,3015.7,3.5259797]
[1764313451715,0.9607,3015.8,3015.7,3.5259797]
[1764313451927,0.9607,3015.8,3015.6,0.21]
[1764313452091,0.4733,3015.7,3015.6,0.21]
[1764313452296,0.9607,3015.7,3015.6,0.21]
[1764313454529,0.9607,3015.7,3015.5,3.31615111]
[1764313454744,0.9439,3015.6,3015.5,3.52615111]
[1764313459135,0.9439,3015.6,3015.5,3.5593131]
[1764313460707,0.9439,3015.6,3015.5,8.38197111]
[1764313460907,0.4782,3015.6,3015.5,9.37792587]
[1764313461210,0.1846,3016.0,3015.7,0.1]
[1764313461410,0.4657,3015.8,3015.7,3.44913949]
[1764313461609,0.9525,3015.8,3015.7,3.44913949]
[1764313461829,0.9525,3015.8,3015.7,3.91483949]
[1764313462530,0.9525,3015.8,3015.7,8.67065949]
[1764313462733,0.9525,3015.8,3015.7,3.7816797]
[1764313462932,0.9525,3015.8,3015.7,3.9906797]
[1764313463941,0.9525,3015.8,3015.7,4.02383949]
[1764313464149,0.9525,3015.8,3015.7,4.0906797]
[1764313465208,0.9525,3015.8,3015.7,4.71627381]
[1764313465453,0.9525,3015.8,3015.7,4.81627381]
[1764313469636,0.9525,3015.8,3015.7,4.60727381]
[1764313469817,0.9525,3015.8,3015.7,4.81627381]
[1764313470153,0.9525,3015.8,3015.7,4.60727381]
[1764313470320,0.9525,3015.8,3015.7,4.71627381]
[1764313471141,0.9525,3015.8,3015.7,4.8494336]
[1764313472144,0.4868,3015.8,3015.7,4.8494336]
[1764313472348,0.9525,3015.8,3015.7,4.8494336]
[1764313472738,0.9525,3015.8,3015.7,4.81627381]
[1764313474338,0.9525,3015.8,3015.7,4.8494336]
[1764313474971,0.9525,3015.8,3015.7,4.81627381]
[1764313479769,0.002,3015.9,3015.8,0.72559411]
[1764313479947,0.002,3015.9,3015.8,5.79041411]
[1764313480265,0.002,3015.9,3015.8,7.57906668]
[1764313480266,0.9545,3015.9,3015.8,7.57906668]
[1764313480470,0.9545,3015.9,3015.8,5.92318824]
[1764313480857,0.9545,3015.9,3015.8,5.71418824]
[1764313481073,0.9545,3015.9,3015.8,5.92318824]
[1764313481247,1.1501,3015.9,3015.8,0.85836824]
[1764313481563,1.1501,3015.9,3015.8,1.06736824]
[1764313482376,1.1501,3015.9,3015.8,4.38323799]
[1764313485241,1.1501,3015.9,3015.8,4.48323799]
[1764313486067,1.1501,3015.9,3015.8,4.51639668]
[1764313486453,1.1501,3015.9,3015.8,5.44534088]
[1764313486454,0.002,3015.9,3015.8,5.44534088]
[1764313487174,0.4756,3015.9,3015.8,5.44534088]
[1764313487377,0.4756,3015.9,3015.8,5.23634088]
[1764313487545,1.1263,3015.9,3015.8,4.38323799]
[1764313487745,1.1263,3015.9,3015.8,4.17423799]
[1764313487948,1.1263,3015.9,3015.8,0.13277413]
[1764313488178,1.1263,3015.9,3015.6,0.001]
[1764313488377,0.4736,3015.7,3015.6,0.21]
[1764313488879,0.9287,3015.7,3015.6,0.21]